bitfinex/quotes_SOLUSD_20240612
["timestamp","ask_amount","ask_price","bid_price","bid_amount"]
[1718206342879,100.0,159.06,159.02,2.3267]
[1718206343068,2.3264,159.04,159.0,20.74559959]
[1718206343265,22.3264,159.05,159.01,2.3268]
[1718206343465,22.3264,159.05,159.02,2.3267]
[1718206343674,22.3264,159.05,159.0,18.41879959]
[1718206343882,2.3264,159.04,159.0,20.74569959]
[1718206344188,2.3266,159.03,159.0,18.41879959]
[1718206344785,2.4966,159.03,159.0,18.41879959]
[1718206345086,2.3268,159.01,159.0,18.41879959]
[1718206345281,102.3268,159.02,159.0,18.41879959]
[1718206345791,100.0,159.02,159.0,18.41879959]
[1718206346691,102.3267,159.02,159.0,18.41879959]
[1718206346883,2.3267,159.02,159.0,18.41879959]
[1718206347286,2.4967,159.03,159.0,18.41879959]
[1718206348378,2.3267,159.02,159.0,18.41879959]
[1718206348615,22.3263,159.05,159.01,2.3268]
[1718206348792,2.3263,159.05,159.01,2.3268]
[1718206348973,2.3264,159.04,159.0,20.74569959]
[1718206349164,104.6525,159.06,159.0,20.74569959]
[1718206349165,2.3263,159.05,159.0,18.41879959]
[1718206349370,102.3262,159.06,159.02,2.3266]
[1718206349889,2.3263,159.05,159.01,2.3268]
[1718206350294,5.04605964,159.09,159.0,18.41879959]
[1718206350295,100.0,159.04,159.0,18.41879959]
[1718206350484,100.0,159.04,159.0,20.74579959]
[1718206350692,2.3265,159.04,159.0,20.74579959]
[1718206350990,39.3614,159.1,159.01,4.6537]
[1718206350991,100.0,159.08,159.01,4.6537]
[1718206351189,2.326,159.07,159.03,2.3265]
[1718206351377,102.3259,159.08,159.04,2.3264]
[1718206351575,2.326,159.07,159.03,2.3265]
[1718206354513,100.0,159.08,159.04,2.3264]
[1718206354686,0.17,159.09,159.04,4.6527]
[1718206354877,2.3255,159.11,159.07,2.3258]
[1718206355202,100.0,159.14,159.07,4.6519]
[1718206355382,102.325,159.14,159.08,22.2997]
[1718206355587,2.3251,159.13,159.08,22.2997]
[1718206355782,2.3251,159.13,159.09,2.3256]
[1718206355976,2.3251,159.13,159.09,2.3257]
[1718206356385,102.3253,159.12,159.08,24.6254]
[1718206356593,100.0,159.12,159.08,22.2997]
[1718206356801,102.3254,159.12,159.08,22.2997]
[1718206356984,2.3254,159.11,159.08,22.2997]
[1718206357381,2.3257,159.09,159.05,2.3262]
[1718206357904,100.17,159.1,159.05,2.3262]
[1718206358085,102.4956,159.1,159.05,2.3262]
[1718206358278,0.17,159.1,159.06,2.3261]
[1718206358483,0.17,159.11,159.08,2.3258]
[1718206358885,0.17,159.12,159.07,4.6519]
[1718206359090,0.17,159.12,159.09,2.3256]
[1718206359287,0.17,159.13,159.1,2.3254]
[1718206359481,0.17,159.13,159.08,4.6516]
[1718206359794,0.17,159.13,159.11,2.3254]
[1718206359985,0.17,159.13,159.1,2.3255]
[1718206360322,0.17,159.13,159.09,2.3256]
[1718206360492,2.4951,159.13,159.09,2.3256]
[1718206360695,0.17,159.13,159.07,11.6298]
[1718206360880,0.17,159.13,159.07,6.9779]
[1718206361199,100.0,159.14,159.08,6.9775]
[1718206361402,100.0,159.14,159.11,2.3254]
[1718206361703,102.3249,159.14,159.1,2.3254]
[1718206361912,2.3251,159.13,159.09,2.3256]
[1718206362283,2.3252,159.12,159.08,2.3257]
[1718206362503,104.65,159.14,159.09,2.3257]
[1718206362504,2.4952,159.13,159.09,2.3257]
[1718206363078,102.325,159.14,159.1,2.3255]
[1718206363890,2.3251,159.13,159.09,2.3256]
[1718206364090,2.3251,159.13,159.08,4.6517]
[1718206364091,102.325,159.14,159.08,4.6517]
[1718206364505,2.3251,159.13,159.07,6.978]
[1718206364705,2.4951,159.13,159.09,2.3256]
[1718206365294,0.17,159.13,159.07,11.6299]
[1718206365508,102.325,159.14,159.1,2.3255]
[1718206365823,2.4951,159.13,159.09,2.3256]
[1718206367510,102.3255,159.11,159.07,2.3259]
[1718206367713,100.0,159.11,159.05,4.6524]
[1718206367918,102.3257,159.09,159.05,2.3262]
[1718206368825,2.3259,159.08,159.03,4.6529]
[1718206369127,2.3259,159.08,159.0,23.07269959]
[1718206369128,2.3263,159.05,159.0,23.07269959]
[1718206369422,100.51,159.07,159.02,4.6534]
[1718206369423,100.17,159.07,159.02,4.6534]
[1718206369723,100.0,159.07,159.02,4.6534]
[1718206370021,100.0,159.05,159.0,23.07259959]
[1718206370225,100.0,159.05,159.02,2.3266]
[1718206371108,0.34,159.06,159.03,2.3265]
[1718206372408,100.0,159.07,159.03,4.6531]
[1718206372826,100.0,159.09,159.04,11.632]
[1718206373123,107.07196484,159.11,159.05,4.6525]
[1718206373330,107.07196484,159.11,159.05,11.6312]
[1718206373528,107.07196484,159.11,159.08,2.3258]
[1718206374322,0.17,159.1,159.08,2.3258]
[1718206374508,107.07196484,159.11,159.08,2.3258]
[1718206374708,2.3253,159.12,159.08,2.3258]
[1718206374926,102.3254,159.11,159.07,2.3259]
[1718206375523,100.0,159.13,159.06,6.9783]
[1718206375708,102.3255,159.11,159.07,2.3259]
[1718206376329,2.3253,159.12,159.06,4.6523]
[1718206376545,102.3252,159.13,159.06,4.6523]
[1718206376828,0.17,159.12,159.06,4.6523]
[1718206377036,100.0,159.11,159.08,2.3258]
[1718206377211,102.3254,159.11,159.07,2.326]
[1718206377733,0.34,159.12,159.09,2.3257]
[1718206377930,0.17,159.12,159.09,2.3257]
[1718206379240,2.4953,159.12,159.07,2.3259]
[1718206379414,2.4953,159.12,159.08,2.3257]
[1718206379734,2.3254,159.11,159.07,2.3259]
[1718206380408,102.3255,159.11,159.06,2.326]
[1718206380611,0.17,159.1,159.05,2.3262]
[1718206380909,0.34,159.1,159.04,25.0708]
[1718206381116,100.0,159.07,159.0,41.06629959]
[1718206381334,2.3262,159.06,159.02,2.3266]
[1718206381540,0.17,159.06,159.0,41.06629959]
[1718206381836,2.4962,159.06,159.02,2.3266]
[1718206382038,0.17,159.06,159.0,41.06629959]
[1718206382213,0.17,159.08,159.02,4.6533]
[1718206382410,0.51,159.08,159.02,4.6533]
[1718206382729,100.17,159.07,159.02,4.6533]
[1718206382932,2.4962,159.06,159.02,2.3266]
[1718206383326,0.17,159.06,159.0,45.72029959]
[1718206383519,0.17,159.06,159.03,2.3265]
[1718206384136,0.17,159.04,159.0,24.96019959]
[1718206384312,2.4964,159.04,159.01,2.3268]
[1718206384511,0.17,159.04,159.01,2.3268]
[1718206384713,0.17,159.04,159.02,2.3267]
[1718206385328,100.0,159.05,159.02,2.3267]
[1718206385835,102.4968,159.01,159.0,18.41879959]
[1718206386173,102.8368,159.01,159.0,18.41879959]
[1718206395236,123.7786,159.01,159.0,18.41879959]
[1718206395541,188.9486,159.01,159.0,0.61479959]
[1718206396334,193.03260771,159.01,159.0,0.61479959]
[1718206396534,196.02056484,159.01,159.0,0.61479959]
[1718206397424,175.07876484,159.01,159.0,1e-08]
[1718206397625,154.39876484,159.01,159.0,1e-08]
[1718206397830,186.03306484,159.01,159.0,1e-08]
[1718206398046,195.34056484,159.01,159.0,1e-08]
[1718206399053,196.02056484,159.01,159.0,1e-08]
[1718206400937,176.02056484,159.01,159.0,1e-08]
[1718206401847,169.03996484,159.01,159.0,1e-08]
[1718206402041,176.02056484,159.01,159.0,1e-08]
[1718206405957,196.02056484,159.01,159.0,1e-08]
[1718206406857,203.62056484,159.01,159.0,1e-08]
[1718206408650,208.59161137,159.01,159.0,1e-08]
[1718206409060,237.31095643,159.01,159.0,1e-08]
[1718206409341,2.4979,158.94,158.93,6.286]
[1718206409535,10.0979,158.94,158.93,6.286]
[1718206409870,7.77,158.94,158.93,6.286]
[1718206410047,0.17,158.94,158.93,6.286]
[1718206410248,100.0,158.95,158.93,5.286]
[1718206410547,2.3277,158.95,158.92,6.6141]
[1718206411141,102.328,158.94,158.92,4.286]
[1718206411346,2.328,158.94,158.92,4.286]
[1718206411555,0.17,158.94,158.92,4.286]
[1718206411768,0.17,158.94,158.89,25.6366]
[1718206411769,110.0978,158.95,158.9,4.286]
[1718206411939,7.6,158.95,158.93,2.328]
[1718206412139,9.9278,158.95,158.92,2.3281]
[1718206412665,10.0979,158.94,158.9,2.3284]
[1718206412849,2.328,158.93,158.9,2.3284]
[1718206413244,7.6,158.92,158.87,4.6576]
[1718206413567,7.6,158.92,158.89,2.3285]
[1718206413764,2.3281,158.93,158.89,2.3285]
[1718206413937,0.17,158.92,158.89,2.3285]
[1718206414139,7.6,158.93,158.9,2.3284]
[1718206414339,10.0979,158.95,158.91,2.3282]
[1718206414562,2.3279,158.94,158.91,2.3282]
[1718206414868,7.77,158.95,158.93,2.328]
[1718206415382,102.6677,158.96,158.93,2.328]
[1718206415546,2.3277,158.95,158.92,2.3281]
[1718206415748,100.0,158.96,158.92,2.3281]
[1718206415749,102.3277,158.96,158.92,2.3281]
[1718206415977,102.3277,158.96,158.93,2.328]
[1718206416144,2.4975,158.97,158.94,2.3278]
[1718206416340,10.0975,158.97,158.91,19.2415]
[1718206416555,10.0975,158.97,158.93,2.3279]
[1718206416750,10.0975,158.97,158.91,19.2415]
[1718206416957,7.6,158.95,158.91,2.3282]
[1718206417264,2.3279,158.94,158.9,2.3284]
[1718206417786,2.328,158.94,158.9,2.3284]
[1718206417957,2.3281,158.93,158.9,2.3284]
[1718206418683,2.3281,158.93,158.89,25.7462]
[1718206418967,2.3281,158.93,158.89,15.8177]
[1718206418968,0.17,158.92,158.89,15.8177]
[1718206419168,2.3284,158.91,158.89,15.8177]
[1718206419952,9.9282,158.92,158.89,15.8177]
[1718206420561,9.9282,158.92,158.89,18.1463]
[1718206420774,2.3281,158.93,158.89,15.8177]
[1718206421074,9.9281,158.93,158.89,15.8177]
[1718206421252,102.328,158.94,158.89,15.8177]
[1718206421454,102.328,158.94,158.91,2.3283]
[1718206421960,2.328,158.94,158.91,2.3283]
[1718206422181,0.17,158.95,158.9,4.6568]
[1718206422363,0.17,158.95,158.9,19.2423]
[1718206422547,0.17,158.95,158.93,2.328]
[1718206423056,2.3277,158.95,158.92,2.3281]
[1718206423471,102.3276,158.96,158.92,2.3281]
[1718206423664,109.9276,158.96,158.92,2.3281]
[1718206423968,102.3276,158.96,158.93,2.328]
[1718206424177,109.9276,158.96,158.92,2.3281]
[1718206424478,2.3277,158.95,158.92,2.3281]
[1718206424772,2.3279,158.94,158.91,2.3283]
[1718206424950,2.3279,158.94,158.9,9.9284]
[1718206425152,2.3279,158.94,158.91,2.3283]
[1718206425351,2.3279,158.94,158.9,9.9284]
[1718206425650,2.3279,158.94,158.9,2.3284]
[1718206426460,2.3279,158.94,158.91,2.3283]
[1718206426673,2.3279,158.94,158.9,7.6]
[1718206426854,2.3279,158.94,158.91,2.3283]
[1718206427466,2.4978,158.95,158.91,2.3283]
[1718206427779,2.3279,158.94,158.91,2.3283]
[1718206428561,2.3279,158.94,158.9,9.9284]
[1718206428773,2.3279,158.94,158.9,2.3284]
[1718206429075,2.328,158.93,158.9,2.3284]
[1718206429458,2.3282,158.92,158.89,18.1462]
[1718206430261,2.3282,158.92,158.89,15.8177]
[1718206430459,2.3282,158.92,158.89,18.1463]
[1718206430672,0.17,158.92,158.89,18.1463]
[1718206430983,0.17,158.92,158.9,2.3285]
[1718206431779,2.3284,158.91,158.86,6.9871]
[1718206431959,2.4982,158.92,158.86,14.5871]
[1718206432158,0.17,158.93,158.9,2.3284]
[1718206432386,0.17,158.93,158.91,2.3282]
[1718206432682,9.9278,158.95,158.89,19.2431]
[1718206433058,9.9278,158.95,158.92,2.3281]
[1718206433266,2.3278,158.95,158.92,2.3281]
[1718206433483,100.51,158.96,158.93,2.328]
[1718206433484,110.4377,158.96,158.93,2.328]
[1718206433685,0.17,158.95,158.92,2.3281]
[1718206434378,2.3277,158.95,158.9,12.2568]
[1718206434583,2.3277,158.95,158.91,2.3282]
[1718206434776,107.6,158.96,158.91,2.3282]
[1718206434777,2.3279,158.94,158.91,2.3282]
[1718206435093,2.3279,158.94,158.89,14.5859]
[1718206435094,2.3279,158.94,158.9,2.3284]
[1718206435689,2.3281,158.93,158.89,2.3285]
[1718206436285,2.3281,158.93,158.9,2.3284]
[1718206436585,0.17,158.93,158.86,4.6579]
[1718206436769,2.3282,158.92,158.88,2.3287]
[1718206437562,2.3282,158.92,158.89,2.3286]
[1718206437788,10.0981,158.93,158.9,2.3285]
[1718206438087,2.4981,158.93,158.9,2.3285]
[1718206438266,0.17,158.93,158.9,2.3285]
[1718206438463,109.928,158.94,158.91,2.3283]
[1718206438713,102.328,158.94,158.91,2.3283]
[1718206438986,9.928,158.94,158.91,2.3283]
[1718206439366,2.328,158.94,158.91,2.3283]
[1718206439576,2.328,158.94,158.89,7.6]
[1718206439775,2.3281,158.93,158.88,6.9863]
[1718206439977,2.3281,158.93,158.89,7.6]
[1718206440167,2.3282,158.92,158.89,2.3285]
[1718206440784,100.0,158.94,158.88,12.2575]
[1718206441088,2.3279,158.94,158.91,2.3283]
[1718206441888,2.3278,158.95,158.92,2.3281]
[1718206442093,112.4252,158.96,158.91,2.3282]
[1718206442391,100.0,158.98,158.95,2.3277]
[1718206442596,111.72606484,159.0,158.94,7.6]
[1718206442808,4.6544,158.99,158.94,9.9278]
[1718206443010,2.3275,158.97,158.93,9.9279]
[1718206443300,2.3273,158.98,158.95,2.3277]
[1718206443799,2.3272,158.99,158.95,2.3277]
[1718206444183,2.3272,158.99,158.94,7.6]
[1718206444184,2.3273,158.98,158.94,9.9278]
[1718206444481,2.4972,158.99,158.95,2.3277]
[1718206444994,2.4972,158.99,158.96,2.3275]
[1718206445205,2.3271,159.0,158.96,2.3275]
[1718206445402,9.9271,159.0,158.97,2.3274]
[1718206445582,7.6,159.0,158.94,12.2557]
[1718206445783,9.9271,159.0,158.94,12.2557]
[1718206445984,9.9271,159.0,158.97,2.3274]
[1718206446485,9.9271,159.0,158.96,2.3275]
[1718206447495,2.3271,159.0,158.96,2.3275]
[1718206447692,9.9271,159.0,158.96,2.3275]
[1718206447903,2.3269,159.01,158.98,2.3273]
[1718206448207,2.3268,159.02,158.98,2.3273]
[1718206448386,100.0,159.02,158.97,7.6]
[1718206448588,2.3269,159.01,158.98,2.3272]
[1718206449183,2.3269,159.01,158.97,2.3273]
[1718206449697,2.327,159.0,158.96,7.6]
[1718206450028,2.3273,158.98,158.93,12.256]
[1718206450211,2.3273,158.98,158.91,27.6056]
[1718206450212,2.3274,158.97,158.91,27.6056]
[1718206450427,2.3275,158.97,158.92,7.6]
[1718206450726,7.6,158.99,158.96,2.3275]
[1718206450916,7.6,158.99,158.97,2.3274]
[1718206451102,7.6,158.99,158.96,2.3275]
[1718206451809,9.9271,159.0,158.96,2.3275]
[1718206452126,9.9271,159.0,158.97,2.3274]
[1718206452613,2.327,159.0,158.97,2.3274]
[1718206452824,107.77,159.01,158.95,4.6555]
[1718206453023,2.3272,158.99,158.95,7.6]
[1718206453231,2.3272,158.99,158.95,2.3276]
[1718206453818,2.3272,158.99,158.96,2.3276]
[1718206454002,102.4969,159.01,158.97,2.3274]
[1718206454208,110.0969,159.01,158.97,2.3274]
[1718206454416,2.327,159.0,158.97,2.3274]
[1718206454598,2.327,159.0,158.96,2.3275]
[1718206454799,2.3271,158.99,158.96,2.3275]
[1718206455008,9.9271,159.0,158.96,2.3275]
[1718206455214,2.3272,158.99,158.96,2.3275]
[1718206455721,12.2542,159.0,158.94,7.6]
[1718206455928,10.0972,158.99,158.95,2.3276]
[1718206456223,7.6,159.0,158.94,19.2395]
[1718206456393,2.3271,158.99,158.96,2.3275]
[1718206456599,7.6,159.0,158.97,2.3274]
[1718206456600,9.927,159.0,158.97,2.3274]
[1718206457221,9.927,159.0,158.96,2.3275]
[1718206457640,2.3273,158.98,158.93,4.6559]
[1718206457812,2.3273,158.98,158.95,2.3277]
[1718206458305,107.77,158.99,158.96,2.3276]
[1718206458522,100.17,158.99,158.93,6.984]
[1718206458738,107.77,158.99,158.93,14.584]
[1718206459137,107.77,158.99,158.94,6.9837]
[1718206459332,100.17,158.99,158.96,2.3275]
[1718206459638,9.9271,159.0,158.98,2.3273]
[1718206459639,7.6,159.0,158.98,2.3273]
[1718206459824,7.6,159.0,158.97,2.3273]
[1718206460222,9.927,159.0,158.97,2.3273]
[1718206460425,2.3272,158.99,158.96,2.3275]
[1718206460626,2.3275,158.97,158.91,29.9342]
[1718206460823,7.94,158.98,158.92,19.2409]
[1718206461142,10.0974,158.98,158.95,2.3277]
[1718206462034,7.77,158.98,158.95,2.3277]
[1718206462544,7.6,158.98,158.96,2.3275]
[1718206462738,9.9272,158.99,158.96,2.3275]
[1718206462921,7.6,158.99,158.96,2.3275]
[1718206463246,2.3273,158.98,158.95,2.3277]
[1718206463839,2.3274,158.97,158.92,19.2403]
[1718206464340,7.77,158.97,158.94,2.3279]
[1718206464541,110.0975,158.97,158.93,2.3279]
[1718206464721,9.9277,158.96,158.91,4.6564]
[1718206465123,9.9277,158.96,158.93,2.328]
[1718206465337,7.6,158.96,158.93,2.328]
[1718206465647,9.9276,158.96,158.91,4.6564]
[1718206466132,2.3276,158.96,158.91,4.6564]
[1718206466314,110.0975,158.97,158.94,2.3279]
[1718206466511,2.3276,158.96,158.93,2.3279]
[1718206466715,7.6,158.96,158.92,2.3281]
[1718206466941,9.9279,158.94,158.91,2.3283]
[1718206467240,100.0,158.95,158.92,2.3282]
[1718206467241,109.9277,158.95,158.92,2.3282]
[1718206467417,107.6,158.95,158.92,2.3282]
[1718206467618,109.9277,158.95,158.92,2.3282]
[1718206467824,7.6,158.95,158.9,11.6423]
[1718206468218,7.6,158.95,158.93,2.328]
[1718206468419,7.6,158.96,158.94,2.3279]
[1718206468935,110.0975,158.97,158.94,2.3279]
[1718206469239,2.3276,158.96,158.93,2.328]
[1718206469456,9.9276,158.96,158.93,2.328]
[1718206469631,2.4978,158.95,158.9,11.6421]
[1718206469935,10.0978,158.95,158.92,2.3281]
[1718206470454,7.77,158.95,158.92,2.3281]
[1718206470933,10.0978,158.95,158.92,2.3281]
[1718206471246,10.0978,158.95,158.91,2.3282]
[1718206471730,110.0978,158.95,158.91,2.3282]
[1718206471934,2.3279,158.94,158.91,2.3282]
[1718206472940,9.9279,158.94,158.91,2.3282]
[1718206473448,7.6,158.94,158.91,2.3282]
[1718206473651,7.6,158.94,158.92,2.3281]
[1718206474348,110.0978,158.95,158.92,2.3281]
[1718206474528,7.6,158.94,158.92,2.3281]
[1718206474727,110.0978,158.95,158.92,2.3281]
[1718206474935,110.0978,158.95,158.91,2.3282]
[1718206475528,110.0978,158.95,158.92,2.3281]
[1718206475735,7.94,158.96,158.91,11.6415]
[1718206475938,10.0976,158.96,158.93,2.3279]
[1718206476447,10.0976,158.96,158.92,2.3281]
[1718206476942,2.3277,158.95,158.92,2.3281]
[1718206477141,10.0977,158.96,158.92,2.3281]
[1718206477444,2.3277,158.95,158.92,2.3281]
[1718206477745,9.9277,158.95,158.92,2.3281]
[1718206478150,2.3279,158.94,158.91,2.3282]
[1718206478442,10.0979,158.94,158.88,11.6436]
[1718206478753,10.0979,158.94,158.88,19.2436]
[1718206478942,7.6,158.93,158.88,11.6436]
[1718206480335,7.6,158.93,158.89,4.6573]
[1718206480536,2.4979,158.94,158.89,4.6573]
[1718206480849,10.0979,158.94,158.89,4.6573]
[1718206482960,7.77,158.94,158.91,2.3282]
[1718206483543,7.77,158.94,158.92,2.3282]
[1718206489459,7.77,158.94,158.9,4.6569]
[1718206489460,100.0,158.93,158.9,2.3284]
[1718206489663,7.6,158.93,158.92,2.3281]
[1718206489874,0.17,158.94,158.92,2.3281]
[1718206490046,7.6,158.93,158.92,2.3281]
[1718206490237,100.0,158.97,158.92,4.6563]
[1718206490558,100.0,158.97,158.94,2.3279]
[1718206490559,7.6,158.96,158.94,2.3279]
[1718206490744,7.6,158.96,158.93,2.3279]
[1718206490950,7.6,158.95,158.93,2.3279]
[1718206491852,7.6,158.94,158.93,2.3279]
[1718206492057,9.928,158.94,158.88,4.6573]
[1718206492250,100.17,158.95,158.87,6.1377]
[1718206492251,7.6,158.93,158.89,4.6572]
[1718206492453,7.6,158.94,158.92,2.3282]
[1718206494573,2.4977,158.95,158.91,2.3282]
[1718206494773,7.6,158.94,158.92,2.3282]
[1718206495068,7.6,158.94,158.89,11.643]
[1718206495069,7.6,158.94,158.91,2.3282]
[1718206495766,9.9279,158.94,158.9,2.3284]
[1718206495971,7.6,158.93,158.9,2.3284]
[1718206497974,7.6,158.93,158.88,4.6575]
[1718206498968,7.6,158.93,158.88,11.6438]
[1718206499170,7.6,158.94,158.88,19.2438]
[1718206499672,2.4976,158.96,158.9,11.6423]
[1718206499867,0.17,158.96,158.93,2.3279]
[1718206500065,7.77,158.96,158.93,2.3279]
[1718206500374,10.0976,158.96,158.92,2.3281]
[1718206500746,9.9277,158.95,158.92,2.3281]
[1718206501276,7.6,158.95,158.92,2.3281]
[1718206501572,0.17,158.96,158.92,2.3281]
[1718206501887,2.3283,158.92,158.88,2.3287]
[1718206502176,9.9283,158.92,158.89,2.3286]
[1718206502467,7.6,158.92,158.89,2.3286]
[1718206502675,7.6,158.92,158.9,2.3285]
[1718206503072,7.6,158.93,158.9,2.3285]
[1718206503376,7.6,158.93,158.88,11.6437]
[1718206503675,7.6,158.93,158.91,2.3282]
[1718206503968,9.9279,158.94,158.91,2.3282]
[1718206504161,7.6,158.93,158.89,2.3285]
[1718206504565,2.3282,158.92,158.89,2.3285]
[1718206504753,9.9281,158.93,158.89,2.3285]
[1718206505074,7.6,158.92,158.87,17.7822]
[1718206505569,9.9282,158.92,158.87,10.7954]
[1718206505774,110.0984,158.91,158.85,19.8654]
[1718206505950,7.6,158.9,158.85,19.8654]
[1718206510372,7.6,158.9,158.86,4.6581]
[1718206510587,7.6,158.9,158.88,2.3287]
[1718206511986,7.77,158.91,158.88,2.3287]
[1718206512579,10.0983,158.91,158.88,2.3287]
[1718206512973,110.0983,158.91,158.88,2.3287]
[1718206513375,109.9283,158.91,158.88,2.3287]
[1718206513560,7.6,158.9,158.88,2.3287]
[1718206514283,7.6,158.9,158.87,2.3288]
[1718206514864,7.6,158.9,158.88,2.3287]
[1718206515678,0.17,158.92,158.89,2.3286]
[1718206515877,10.0982,158.92,158.89,2.3286]
[1718206516983,9.9283,158.91,158.85,19.8653]
[1718206517285,9.9285,158.9,158.87,2.3288]
[1718206517590,7.6,158.9,158.85,19.8653]
[1718206517760,7.6,158.9,158.86,4.6581]
[1718206517962,7.6,158.9,158.88,2.3287]
[1718206518681,7.6,158.9,158.89,2.3286]
[1718206519171,107.6,158.91,158.89,2.3286]
[1718206519783,109.9283,158.91,158.86,4.6581]
[1718206520169,2.4983,158.92,158.86,4.6581]
[1718206520366,7.6,158.91,158.86,4.6581]
[1718206521596,7.6,158.9,158.87,2.3288]
[1718206521763,0.17,158.92,158.86,7.6]
[1718206521963,7.77,158.92,158.89,2.3285]
[1718206522273,0.17,158.92,158.9,2.3284]
[1718206522673,7.77,158.92,158.86,7.6]
[1718206522876,10.0983,158.92,158.86,7.6]
[1718206523178,102.6681,158.93,158.86,7.6]
[1718206523378,107.6,158.93,158.87,7.6]
[1718206523593,109.928,158.93,158.87,7.6]
[1718206523803,16.3205,158.95,158.83,6.3768]
[1718206523804,102.3278,158.95,158.89,7.6]
[1718206524095,16.99956484,158.96,158.9,7.6]
[1718206524267,9.9278,158.95,158.89,7.6]
[1718206524463,102.3281,158.93,158.89,7.6]
[1718206524662,2.3282,158.92,158.87,16.6327]
[1718206524867,109.9281,158.93,158.87,24.2327]
[1718206525265,7.6,158.94,158.88,7.6]
[1718206525468,9.9278,158.95,158.89,7.6]
[1718206525681,2.328,158.93,158.88,7.6]
[1718206525883,9.928,158.93,158.87,16.6327]
[1718206526071,2.3282,158.92,158.87,24.2327]
[1718206526271,2.3282,158.92,158.87,16.6327]
[1718206526486,2.3282,158.92,158.87,24.2327]
[1718206526681,9.9281,158.93,158.87,24.2327]
[1718206527593,7.6,158.93,158.87,24.2327]
[1718206527793,0.17,158.95,158.89,7.6]
[1718206528095,0.17,158.95,158.9,7.6]
[1718206528475,7.77,158.95,158.89,14.0016]
[1718206528701,10.0977,158.95,158.89,14.0016]
[1718206529397,2.4977,158.95,158.89,14.0016]
[1718206529597,10.0977,158.95,158.89,14.0016]
[1718206529897,9.9279,158.94,158.89,6.4016]
[1718206530070,2.328,158.93,158.89,6.4016]
[1718206530269,9.9283,158.92,158.87,16.6327]
[1718206531693,9.9285,158.9,158.85,6.3765]
[1718206531911,7.6,158.9,158.85,6.3765]
[1718206532199,109.9283,158.91,158.85,13.9765]
[1718206532681,109.9283,158.91,158.85,6.3765]
[1718206533001,10.0982,158.92,158.86,7.6]
[1718206533692,0.17,158.9,158.85,6.3765]
[1718206533879,2.4985,158.9,158.85,13.9765]
[1718206534204,2.4985,158.9,158.87,2.3289]
[1718206534675,7.6,158.91,158.88,22.0039]
[1718206534877,7.6,159.03,158.91,0.17]
[1718206535075,115.2841,159.04,158.92,6.2235]
[1718206535296,115.2841,159.04,158.97,2.3273]
[1718206535297,107.6,159.01,158.97,2.3273]
[1718206535593,7.6,158.99,158.96,2.3275]
[1718206535797,7.6,158.99,158.97,2.3274]
[1718206535979,100.0,159.01,158.97,2.3274]
[1718206535980,7.6,159.0,158.97,2.3274]
[1718206536598,7.6,158.99,158.96,2.3275]
[1718206536781,7.6,159.0,158.96,2.3275]
[1718206537099,7.6,159.0,158.94,7.6]